fUSD/lending_fUSD_20250227
["ID","MTS","AMOUNT","RATE_DAILY","PERIOD"]
[354704052,1740630653223,-500.0,0.00060273,120]
[354704053,1740630653232,-500.0,0.00060273,120]
[354704054,1740630653241,-500.0,0.00060273,120]
[354704055,1740630653250,-500.0,0.00060273,120]
[354704056,1740630653259,-500.0,0.00060273,120]
[354704057,1740630653271,-500.0,0.00060273,120]
[354704058,1740630653281,-500.0,0.00060273,120]
[354704059,1740630653291,-500.0,0.00060273,120]
[354704060,1740630653302,-500.0,0.00060273,120]
[354704061,1740630653312,-500.0,0.00060273,120]
[354704062,1740630653322,-500.0,0.00060273,120]
[354704063,1740630653333,-500.0,0.00060273,120]
[354704064,1740630653344,-500.0,0.00060273,120]
[354704065,1740630653353,-500.0,0.00060273,120]
[354704066,1740630653364,-500.0,0.00060273,120]
[354704067,1740630653374,-500.0,0.00060273,120]
[354704068,1740630653383,-500.0,0.00060273,120]
[354704069,1740630653393,-568.63,0.00060273,120]
[354704070,1740630653403,-568.63,0.00060273,120]
[354704071,1740630653411,-568.63,0.00060273,120]
[354704072,1740630653420,-568.63,0.00060273,120]
[354704073,1740630653429,-568.63,0.00060273,120]
[354704074,1740630653438,-568.63,0.00060273,120]
[354704075,1740630653447,-568.63,0.00060273,120]
[354704076,1740630653455,-568.63,0.00060273,120]
[354704077,1740630653464,-568.63,0.00060273,120]
[354704078,1740630653473,-568.63,0.00060273,120]
[354704079,1740630653482,-568.63,0.00060273,120]
[354704080,1740630653491,-568.63,0.00060273,120]
[354704081,1740630653500,-568.63,0.00060273,120]
[354704082,1740630653509,-568.63,0.00060273,120]
[354704083,1740630653518,-568.63,0.00060273,120]
[354704084,1740630653527,-568.63,0.00060273,120]
[354704085,1740630653536,-568.63,0.00060273,120]
[354704086,1740630653545,-568.63,0.00060273,120]
[354704087,1740630653554,-568.63,0.00060273,120]
[354704088,1740630653563,-568.63,0.00060273,120]
[354704089,1740630653571,-568.63,0.00060273,120]
[354704090,1740630653581,-568.63,0.00060273,120]
[354704091,1740630653590,-568.63,0.00060273,120]
[354704092,1740630653599,-568.70977328,0.00060273,120]
[354704093,1740630653612,-833.33,0.00060273,120]
[354704094,1740630653623,-833.33,0.00060273,120]
[354704095,1740630653633,-833.33,0.00060273,120]
[354704096,1740630653642,-833.33,0.00060273,120]
[354704097,1740630653656,-833.33,0.00060273,120]
[354704098,1740630653666,-833.33,0.00060273,120]
[354704099,1740630653675,-833.33,0.00060273,120]
[354704100,1740630653685,-833.33,0.00060273,120]
[354704101,1740630653695,-833.33,0.00060273,120]
[354704102,1740630653705,-833.33,0.00060273,120]
[354704103,1740630653716,-833.33,0.00060273,120]
[354704104,1740630653727,-833.33,0.00060273,120]
[354704105,1740630653738,-833.33,0.00060273,120]
[354704106,1740630653748,-833.33,0.00060273,120]
[354704107,1740630653759,-833.33,0.00060273,120]
[354704108,1740630653768,-833.33,0.00060273,120]
[354704109,1740630653777,-833.33,0.00060273,120]
[354704110,1740630653787,-833.33,0.00060273,120]
[354704111,1740630653797,-833.33,0.00060273,120]
[354704112,1740630653807,-833.33,0.00060273,120]
[354704113,1740630653816,-833.33,0.00060273,120]
[354704114,1740630653826,-833.33,0.00060273,120]
[354704115,1740630653836,-833.33,0.00060273,120]
[354704116,1740630653846,-833.41,0.00060273,120]
[354704117,1740630653855,-486.13957681,0.00060273,120]
[354704118,1740630653865,-500.0,0.00060273,120]
[354704119,1740630653874,-209.0,0.0006077,30]
[354704120,1740630653883,-206.0,0.0006077,30]
[354704121,1740630653892,-204.93401505,0.000608,120]
[354704122,1740630653901,-150.0,0.00060805,120]
[354704123,1740630653911,-150.0,0.00060805,120]
[354704124,1740630653919,-321.41,0.0006084,2]
[354704125,1740630653928,-2184.0,0.0006089,120]
[354704126,1740630653938,-2184.0,0.0006089,120]
[354704127,1740630653947,-159.87,0.00060983,120]
[354704128,1740630653956,-1000.0,0.00061,120]
[354704129,1740630653965,-327.0,0.0006117,120]
[354704130,1740630653974,-211.10445397,0.00061525,15]
[354704131,1740630653984,-1030.0,0.000616,7]
[354704132,1740630653993,-150.0,0.00061726,120]
[354704133,1740630654002,-150.0,0.00061726,120]
[354704134,1740630654011,-2184.0,0.0006189,120]
[354704135,1740630654020,-2184.0,0.0006189,120]
[354704136,1740630654029,-2184.0,0.0006189,120]
[354704137,1740630654039,-2401.27573552,0.00061947,88]
[354704138,1740630654047,-1000.0,0.00062,120]
[354704139,1740630654056,-150.0,0.0006234,120]
[354704140,1740630654065,-1000.0,0.000625,120]
[354704141,1740630654074,-817.0,0.000625,120]
[354704142,1740630654083,-206.0,0.0006263,30]
[354704143,1740630654092,-206.0,0.0006263,30]
[354704144,1740630654101,-209.0,0.0006263,30]
[354704145,1740630654110,-206.0,0.0006263,30]
[354704146,1740630654119,-150.0,0.00062647,120]
[354704147,1740630654128,-150.0,0.00062647,120]
[354704148,1740630654136,-514.74058616,0.00062764,120]
[354704149,1740630654145,-2184.0,0.0006289,120]
[354704150,1740630654154,-2184.0,0.0006289,120]
[354704151,1740630654163,-2184.0,0.0006289,120]
[354704152,1740630654172,-1000.0,0.00063,120]
[354704153,1740630654182,-321.41,0.00063104,2]
[354704154,1740630654191,-153.0,0.00063213,2]
[354704155,1740630654201,-400.0,0.0006337,60]
[354704156,1740630654210,-400.0,0.0006337,60]
[354704157,1740630654219,-155.16,0.00063562,120]
[354704158,1740630654229,-153.3,0.00063562,120]
[354704159,1740630654238,-157.28,0.00063562,120]
[354704160,1740630654249,-150.0,0.00063569,120]
[354704161,1740630654262,-150.0,0.00063569,120]
[354704162,1740630654278,-150.0,0.00063654,30]
[354704163,1740630654288,-150.0,0.00063878,30]
[354704164,1740630654302,-150.0,0.00063884,30]
[354704165,1740630654313,-2184.0,0.0006389,120]
[354704166,1740630654325,-2184.0,0.0006389,120]
[354704167,1740630654340,-1000.0,0.00063932,60]
[354704168,1740630654357,-150.0,0.00063944,30]
[354704169,1740630654366,-300.0,0.00063999,30]
[354704170,1740630654375,-666.0,0.00063999,120]
[354704171,1740630654384,-15815.31723046,0.00064,120]
[354704172,1740630654394,-1131.44368087,0.00064,7]
[354704173,1740630654403,-1000.0,0.00064,120]
[354704174,1740630654412,-2110.0,0.00064,30]
[354704175,1740630654421,-1000.0,0.00064075,60]
[354704176,1740630654432,-150.0,0.00064133,30]
[354704177,1740630654443,-2000.0,0.00064168,14]
[354704178,1740630654452,-2000.0,0.00064168,14]
[354704179,1740630654463,-150.0,0.00064185,30]
[354704180,1740630654472,-300.0,0.0006424,120]
[354704181,1740630654483,-150.0,0.00064253,30]
[354704182,1740630654492,-150.0,0.00064322,30]
[354704183,1740630654601,-2401.0,0.00064347,92]
[354704184,1740630654615,-151.0,0.00064347,120]
[354704185,1740630654624,-154.578108,0.00064347,120]
[354704186,1740630654635,-206.394834,0.00064347,120]
[354704187,1740630654646,-151.0,0.00064347,120]
[354704188,1740630654658,-154.864344,0.00064347,120]
[354704189,1740630654668,-151.0,0.00064347,7]
[354704190,1740630654677,-151.0,0.00064347,120]
[354704191,1740630654687,-1034.8761983,0.00064379,60]
[354704192,1740630654698,-5000.0,0.00064385,120]
[354704193,1740630654707,-151.0,0.00064385,120]
[354704194,1740630654717,-218.105574,0.00064385,120]
[354704195,1740630654727,-151.0,0.00064385,120]
[354704196,1740630654738,-153.813896,0.00064385,120]
[354704197,1740630654747,-151.0,0.00064385,120]
[354704198,1740630654756,-156.516224,0.00064385,120]
[354704199,1740630654767,-151.0,0.00064385,120]
[354704200,1740630654776,-151.0,0.00064385,120]
[354704201,1740630654786,-151.0,0.00064385,120]
[354704202,1740630654796,-151.0,0.00064385,120]
[354704203,1740630654807,-151.0,0.00064385,120]
[354704204,1740630654817,-222.858898,0.000644,120]
[354704205,1740630654826,-150.0,0.000644,120]
[354704206,1740630654835,-168.91260651,0.000644,28]
[354704207,1740630654844,-150.0,0.00064401,2]
[354704208,1740630654854,-581.9825308,0.00064401,2]
[354704209,1740630654864,-150.0,0.00064413,30]
[354704210,1740630654873,-300.0,0.0006444,120]
[354704211,1740630654883,-4517.2891412,0.00064456,4]
[354704212,1740630654892,-3933.0490516,0.00064456,4]
[354704213,1740630654902,-1140.6625306,0.00064456,4]
[354704214,1740630654911,-993.1358264,0.00064456,4]
[354704215,1740630654920,-745.6609689,0.00064456,4]
[354704216,1740630654930,-643.4683435,0.00064456,4]
[354704217,1740630654940,-400.0,0.0006447,60]
[354704218,1740630654950,-400.0,0.0006447,60]
[354704219,1740630654959,-206.0,0.0006448,30]
[354704220,1740630654969,-212.0,0.0006448,30]
[354704221,1740630654979,-206.0,0.0006448,30]
[354704222,1740630654987,-209.0,0.0006448,30]
[354704223,1740630654997,-206.0,0.0006448,30]
[354704224,1740630655007,-209.0,0.0006448,30]
[354704225,1740630655016,-150.0,0.0006449,120]
[354704226,1740630655026,-150.0,0.0006449,120]
[354704227,1740630655035,-150.0,0.0006449,120]
[354704228,1740630655045,-150.0,0.0006449,120]
[354704229,1740630655055,-155.70079161,0.000645,120]
[354704230,1740630655064,-2437859.0,0.000645,120]
[354704231,1740630655073,-2500000.0,0.000645,120]
[354704232,1740630655083,-152.145773,0.000645,120]
[354704233,1740630655092,-152.273529,0.000645,120]
[354704234,1740630655102,-151.0,0.000645,120]
[354704235,1740630655111,-181.645216,0.000645,120]
[354704236,1740630655120,-151.0,0.000645,120]
[354704237,1740630655129,-2117.86,0.000645,30]
[354704238,1740630655139,-152.110923,0.000645,120]
[354704239,1740630655148,-151.0,0.000645,120]
[354704240,1740630655157,-151.445172,0.000645,120]
[354704241,1740630655166,-151.0,0.000645,120]
[354704242,1740630655175,-151.0,0.000645,120]
[354704243,1740630655184,-152.032027,0.000645,120]
[354704244,1740630655193,-151.0,0.000645,120]
[354704245,1740630655202,-151.0,0.000645,120]
[354704246,1740630655211,-188.427268,0.000645,120]
[354704247,1740630655220,-188.427268,0.000645,120]
[354704248,1740630655229,-151.0,0.000645,120]
[354704249,1740630655238,-151.0,0.000645,120]
[354704250,1740630655248,-151.0,0.000645,120]
[354704251,1740630655256,-151.0,0.000645,120]
[354704252,1740630655265,-159.33891,0.000645,120]
[354704253,1740630655274,-151.293271,0.000645,120]
[354704254,1740630655283,-151.39661,0.000645,120]
[354704255,1740630655292,-151.0,0.000645,120]
[354704256,1740630655302,-151.0,0.000645,120]
[354704257,1740630655311,-216.730939,0.000645,120]
[354704258,1740630655320,-151.823372,0.000645,120]
[354704259,1740630655330,-151.0,0.000645,120]
[354704260,1740630655339,-152.02202,0.000645,120]
[354704261,1740630655348,-151.0,0.000645,120]
[354704262,1740630655358,-151.0,0.000645,120]
[354704263,1740630655367,-151.0,0.000645,120]
[354704264,1740630655376,-151.0,0.000645,120]
[354704265,1740630655385,-151.0,0.000645,120]
[354704266,1740630655394,-151.0,0.000645,120]
[354704267,1740630655403,-276.75958,0.000645,120]
[354704268,1740630655412,-151.0,0.000645,120]
[354704269,1740630655421,-151.0,0.000645,120]
[354704270,1740630655430,-151.0,0.000645,120]
[354704271,1740630655439,-151.0,0.000645,120]
[354704272,1740630655448,-160.900332,0.000645,120]
[354704273,1740630655457,-151.0,0.000645,120]
[354704274,1740630655466,-177.959416,0.000645,120]
[354704275,1740630655475,-151.0,0.000645,120]
[354704276,1740630655484,-160.91777,0.000645,120]
[354704277,1740630655493,-151.0,0.000645,120]
[354704278,1740630655503,-1402.1902067,0.00064624,4]
[354704279,1740630655512,-1278.0654732,0.00064624,4]
[354704280,1740630655521,-1153.9407398,0.00064624,4]
[354704281,1740630655530,-1029.8160063,0.00064624,4]
[354704282,1740630655539,-905.6912729,0.00064624,4]
[354704283,1740630655548,-781.5665394,0.00064624,4]
[354704284,1740630655557,-1507.9664691,0.00064668,4]
[354704285,1740630655566,-1374.4782054,0.00064668,4]
[354704286,1740630655575,-1240.9899417,0.00064668,4]
[354704287,1740630655583,-1107.5016781,0.00064668,4]
[354704288,1740630655592,-974.0134144,0.00064668,4]
[354704289,1740630655601,-840.5251507,0.00064668,4]
[354704290,1740630655614,-211.10445397,0.00064713,16]
[354704291,1740630655623,-151.0,0.00064767,120]
[354704292,1740630655632,-156.23,0.000648,120]
[354704293,1740630655641,-50000.0,0.0006483,120]
[354704294,1740630655652,-501.36389121,0.00064849,15]
[354704295,1740630655662,-5000.0,0.0006487,30]
[354704296,1740630655671,-2184.0,0.0006489,120]
[354704297,1740630655681,-2184.0,0.0006489,120]
[354704298,1740630655690,-159.83845078,0.000649,99]
[354704299,1740630655699,-1110.34257522,0.000649,80]
[354704300,1740630655708,-1000.0,0.00064999,120]
[354704301,1740630655718,-100000.0,0.00065,65]
[354704302,1740630655727,-100000.0,0.00065,120]
[354704303,1740630655736,-100000.0,0.00065,30]
[354704304,1740630655745,-3024.89323496,0.00065,120]
[354704305,1740630655754,-350.0,0.00065,120]
[354704306,1740630655763,-341188.0,0.00065,120]
[354704307,1740630655773,-1000000.0,0.00065,120]
[354704308,1740630655783,-1000000.0,0.00065,120]
[354704309,1740630655792,-1000000.0,0.00065,120]
[354704310,1740630655802,-21477.45204355,0.00065,120]
[354704311,1740630655811,-153.178801,0.00065,120]
[354704312,1740630655820,-152.431603,0.00065,120]
[354704313,1740630655829,-152.396645,0.00065,120]
[354704314,1740630655839,-154.369062,0.00065,120]
[354704315,1740630655849,-153.803601,0.00065,120]
[354704316,1740630655859,-151.0,0.00065,120]
[354704317,1740630655868,-188.427268,0.00065,120]
[354704318,1740630655877,-188.427268,0.00065,120]
[354704319,1740630655886,-188.427268,0.00065,120]
[354704320,1740630655895,-188.427268,0.00065,120]
[354704321,1740630655904,-188.427268,0.00065,120]
[354704322,1740630655914,-188.427268,0.00065,120]
[354704323,1740630655924,-188.427268,0.00065,120]
[354704324,1740630655933,-188.427268,0.00065,120]
[354704325,1740630655942,-151.565135,0.00065,120]
[354704326,1740630655951,-151.0,0.00065,120]
[354704327,1740630655960,-151.0,0.00065,120]
[354704328,1740630655969,-151.0,0.00065,120]
[354704329,1740630655979,-276.857676,0.00065,120]
[354704330,1740630655989,-151.0,0.00065,120]
[354704331,1740630656000,-151.0,0.00065,120]
[354704332,1740630656010,-151.0,0.00065,120]
[354704333,1740630656020,-151.0,0.00065,120]
[354704334,1740630656030,-151.0,0.00065,120]
[354704335,1740630656040,-298.768751,0.00065,120]
[354704336,1740630656050,-151.0,0.00065041,120]
[354704337,1740630656060,-200.0,0.00065121,120]
[354704338,1740630656069,-321.41,0.00065368,2]
[354704339,1740630656079,-5137.65216529,0.000655,120]
[354704340,1740630656088,-4000.0,0.0006568,40]
[354704341,1740630656099,-2184.0,0.0006589,120]
[354704342,1740630656108,-2184.0,0.0006589,120]
[354704343,1740630656118,-1727.78000285,0.000659,120]
[354704344,1740630656128,-1727.7800028,0.000659,120]
[354704345,1740630656137,-1727.7800028,0.000659,120]
[354704346,1740630656147,-1727.7800028,0.000659,120]
[354704347,1740630656156,-1727.7800028,0.000659,120]
[354704348,1740630656165,-1727.7800028,0.000659,120]
[354704349,1740630656175,-1727.7800028,0.000659,120]
[354704350,1740630656184,-1727.7800028,0.000659,120]
[354704351,1740630656193,-1727.7800028,0.000659,120]
[354704352,1740630656203,-1727.7800028,0.000659,120]
[354704353,1740630656213,-1727.7800028,0.000659,120]
[354704354,1740630656223,-1727.7800028,0.000659,120]
[354704355,1740630656232,-1727.7800028,0.000659,120]
[354704356,1740630656241,-1727.7800028,0.000659,120]
[354704357,1740630656250,-1727.7800028,0.000659,120]
[354704358,1740630656259,-1727.7800028,0.000659,120]
[354704359,1740630656268,-1727.7800028,0.000659,120]
[354704360,1740630656277,-1727.7800028,0.000659,120]
[354704361,1740630656286,-1727.7800028,0.000659,120]
[354704362,1740630656296,-1727.7800028,0.000659,120]
[354704363,1740630656306,-323.27820817,0.000659,2]
[354704364,1740630656315,-3467.02612131,0.000659,2]
[354704365,1740630656324,-10000.0,0.00066,120]
[354704366,1740630656334,-148924.78234979,0.00066,30]
[354704367,1740630656343,-1000000.0,0.00066,120]
[354704368,1740630656352,-15000.0,0.00066,15]
[354704369,1740630656362,-70558.74719337,0.00066,30]
[354704370,1740630656371,-188.427268,0.00066,120]
[354704371,1740630656380,-188.427268,0.00066,120]
[354704372,1740630656389,-151.0,0.00066,120]
[354704373,1740630656398,-500.0,0.00066219,120]
[354704374,1740630656408,-150.0,0.00066219,120]
[354704375,1740630656417,-150.0,0.00066219,2]
[354704376,1740630656426,-1057.0,0.00066219,120]
[354704377,1740630656435,-160.32614612,0.00066219,120]
[354704378,1740630656445,-255.97872863,0.00066219,62]
[354704379,1740630656455,-151.0,0.00066219,120]
[354704380,1740630656466,-500.0,0.00066493,120]
[354704381,1740630656475,-150.0,0.00066493,120]
[354704382,1740630656483,-1057.0,0.00066493,120]
[354704383,1740630656492,-923620.62,0.000665,120]
[354704384,1740630656503,-10000.0,0.000665,120]
[354704385,1740630656513,-188.427268,0.000665,120]
[354704386,1740630656522,-188.427268,0.000665,120]
[354704387,1740630656533,-151.0,0.000665,120]
[354704388,1740630656542,-321.14404674,0.000665,2]
[354704389,1740630656552,-10820.34702417,0.00066592,120]
[354704390,1740630656562,-5585.27885349,0.000666,120]
[354704391,1740630656572,-50960390.85866688,0.000666,30]
[354704392,1740630656621,-6868.5,0.000666,30]
[354704397,1740631831758,-500.0,0.00025411,3]
[354704398,1740631831767,-500.0,0.00025511,3]
[354704399,1740631831777,-484.54471875,0.00025611,2]
[354704400,1740631831788,-15.45528125,0.00025611,2]
[354704401,1740631831797,-500.0,0.00025711,2]
[354704402,1740631831807,-157.41,0.00026849,2]
[354704403,1740631831817,-252.3897915,0.00033576,2]
[354704404,1740631831827,-150.0,0.00034548,10]
[354704405,1740631831837,-157.41,0.00037863,2]
[354704406,1740631831846,-450.0,0.0004158,2]
[354704407,1740631831856,-389.0,0.00045392,5]
[354704408,1740631831865,-548.29540813,0.00045393,30]
[354704409,1740631831875,-9999.99,0.00045393,2]
[354704410,1740631831883,-249.985,0.00047769,2]
[354704411,1740631831892,-250.0,0.00047769,2]
[354704412,1740631831902,-232.0,0.00047769,2]
[354704413,1740631831911,-150.385,0.00047769,2]
[354704414,1740631831920,-150.0,0.00047769,2]
[354704415,1740631831929,-150.839,0.00047769,2]
[354704416,1740631831938,-1016.075,0.00047769,2]
[354704417,1740631831948,-213.772,0.00047769,2]
[354704418,1740631831958,-157.41,0.00048877,2]
[354704419,1740631831967,-211.10445397,0.000489,11]
[354704420,1740631831977,-150.0,0.00050769,120]
[354704421,1740631831986,-150.0,0.00050769,120]
[354704422,1740631831995,-150.0,0.00050769,2]
[354704423,1740631832005,-150.0,0.00050769,2]
[354704424,1740631832017,-150.0,0.00050769,120]
[354704425,1740631832026,-524.0,0.00052456,30]
[354704426,1740631832035,-524.0,0.00052997,30]
[354704427,1740631832044,-524.0,0.00053537,30]
[354704428,1740631832054,-150.0,0.00053769,120]
[354704429,1740631832064,-524.0,0.00054078,30]
[354704430,1740631832073,-214.25985925,0.00054078,30]
[354704431,1740631832083,-524.0,0.00054619,30]
[354704432,1740631832094,-263.0,0.0005469,2]
[354704433,1740631832103,-237.0,0.0005516,120]
[354704434,1740631832112,-524.0,0.0005516,30]
[354704435,1740631832122,-524.0,0.00055701,30]
[354704436,1740631832131,-150.0,0.00056769,120]
[354704437,1740631832141,-263.0,0.00056954,2]
[354704438,1740631832150,-150.0,0.00057381,2]
[354704439,1740631832159,-1000.0,0.00057388,120]
[354704440,1740631832168,-2000.0,0.00057418,120]
[354704441,1740631832178,-163.5,0.00057715,120]
[354704442,1740631832187,-159.87,0.00057718,120]
[354704443,1740631832196,-1500.0,0.00057833,120]
[354704444,1740631832205,-250.0,0.00057841,120]
[354704445,1740631832214,-23900.0,0.00058389,2]
[354704446,1740631832224,-748.0,0.000584,30]
[354704447,1740631832234,-150.0,0.0005844,7]
[354704448,1740631832243,-323.50218709,0.00059545,120]
[354704449,1740631832252,-150.0,0.00059769,120]
[354704450,1740631832261,-157.41,0.0005989,120]
[354704451,1740631832271,-501.58086321,0.00060273,120]
[354704452,1740631832280,-500.0,0.00060273,120]
[354704453,1740631832289,-199.59,0.00060273,120]
[354704454,1740631832298,-500.0,0.00060273,120]
[354704455,1740631832307,-500.0,0.00060273,120]
[354704456,1740631832316,-500.0,0.00060273,120]
[354704457,1740631832325,-328.37941715,0.00060273,120]
[354704458,1740631832335,-300.0,0.00060273,120]
[354704459,1740631832345,-500.0,0.00060273,120]
[354704461,1740631832355,-500.0,0.00060273,120]
[354704464,1740631832364,-500.0,0.00060273,120]
[354704465,1740631832373,-500.0,0.00060273,120]
[354704466,1740631832383,-500.0,0.00060273,120]
[354704467,1740631832392,-500.0,0.00060273,120]
[354704468,1740631832402,-500.0,0.00060273,120]
[354704469,1740631832411,-500.0,0.00060273,120]
[354704470,1740631832420,-500.45305274,0.00060273,120]
[354704471,1740631832429,-900.315,0.000609,120]
[354704472,1740631832439,-17308.7135,0.00061378,7]
[354704473,1740631832448,-5000.0,0.00061478,120]
[354704474,1740631832457,-150.0,0.00062769,120]
[354704475,1740631832466,-200.0,0.00063484,120]
[354704476,1740631832475,-924.0727,0.000639,2]
[354704477,1740631832484,-25548.0,0.00064,2]
[354704478,1740631832493,-1000.0,0.00064561,120]
[354704479,1740631832502,-7500.0,0.000649,120]
[354704480,1740631832510,-664.1542,0.000649,120]
[354704481,1740631832519,-2500.0,0.000649,2]
[354704482,1740631832529,-2220.68515046,0.00064986,120]
[354704483,1740631832539,-446.67348086,0.00064999,120]
[354704484,1740631832549,-162.6714366,0.00064999,120]
[354704485,1740631832559,-517.62042319,0.00064999,120]
[354704486,1740631832569,-500.0,0.00064999,120]
[354704487,1740631832578,-500.0,0.00064999,120]
[354704488,1740631832588,-500.0,0.00064999,120]
[354704489,1740631832597,-500.0,0.00064999,120]
[354704490,1740631832606,-500.0,0.00064999,120]
[354704491,1740631832615,-500.0,0.00064999,120]
[354704492,1740631832625,-482.46495198,0.00064999,120]
[354704493,1740631832634,-833.33,0.00064999,120]
[354704494,1740631832643,-833.33,0.00064999,120]
[354704495,1740631832652,-833.33,0.00064999,120]
[354704496,1740631832661,-833.33,0.00064999,120]
[354704497,1740631832670,-833.33,0.00064999,120]
[354704498,1740631832679,-833.33,0.00064999,120]
[354704499,1740631832688,-500.0,0.00064999,120]
[354704500,1740631832697,-500.0,0.00064999,120]
[354704501,1740631832706,-500.0,0.00064999,120]
[354704502,1740631832715,-182.49252033,0.00064999,120]
[354704503,1740631832724,-500.0,0.00064999,120]
[354704504,1740631832733,-500.0,0.00064999,120]
[354704505,1740631832742,-500.0,0.00064999,120]
[354704506,1740631832751,-500.0,0.00064999,120]
[354704507,1740631832760,-500.0,0.00064999,120]
[354704508,1740631832769,-500.0,0.00064999,120]
[354704509,1740631832779,-430.876701,0.00064999,120]
[354704510,1740631832788,-4292.21,0.00064999,120]
[354704511,1740631832798,-4292.21,0.00064999,120]
[354704512,1740631832807,-4292.21,0.00064999,120]
[354704513,1740631832816,-4292.21,0.00064999,120]
[354704514,1740631832825,-4292.21,0.00064999,120]
[354704515,1740631832835,-4292.21,0.00064999,120]
[354704516,1740631832844,-6615.0,0.00065,25]
[354704517,1740631832854,-500000.0,0.00065,120]
[354704518,1740631832863,-859157.51341725,0.00065,120]
[354704519,1740631832879,-263.0,0.00059218,2]
[354704520,1740631832888,-1508.80055567,0.00065,120]
[354704521,1740631832899,-23934.41887302,0.00065,120]
[354704522,1740631832909,-3972.50683602,0.00065,120]
[354704523,1740631832920,-6099.9999999,0.00065,120]
[354704524,1740631832931,-4880.0,0.00065,120]
[354704525,1740631832942,-18415.75351124,0.00065,120]
[354704527,1740631837739,-263.0,0.00061482,2]
[354704528,1740631837749,-60.01649634,0.00063746,2]
[354704529,1740631837849,-202.98350366,0.00063746,2]
[354704530,1740631837858,-47.01649634,0.00065,120]
[354704531,1740631837956,-76255.38848127,0.00065,120]
[354704541,1740631840031,-5728.60182929,0.00065,120]
[354704542,1740631840041,-170.1811,0.000651,7]
[354704543,1740631840051,-500.0,0.00065149,120]
[354704544,1740631840060,-36224.25929671,0.0006515,120]
[354704579,1740631843363,-742.77656244,0.0006515,120]
[354704850,1740631845913,-1210.20171699,0.0006515,120]
[354704856,1740631845968,-16478.04150633,0.0006515,120]
[354704885,1740631846242,-394.90855897,0.0006515,120]
[354704887,1740631846254,-388.37362269,0.0006515,120]
[354705248,1740633031970,-172.15,0.00021918,2]
[354705249,1740633031980,-54119.6891092,0.00026099,30]
[354705250,1740633031990,-1157.44,0.00026099,12]
[354705251,1740633031999,-198.16951585,0.00026099,12]
[354705252,1740633032008,-152.0,0.00026099,2]
[354705253,1740633032017,-190.74568247,0.000261,30]
[354705254,1740633032027,-500.0,0.000261,10]
[354705255,1740633032036,-500.0,0.000261,10]
[354705256,1740633032045,-500.0,0.000261,10]
[354705257,1740633032054,-500.0,0.000261,10]
[354705258,1740633032064,-500.0,0.000261,10]
[354705259,1740633032073,-500.0,0.000261,10]
[354705260,1740633032082,-600.0,0.000261,10]
[354705261,1740633032091,-500.0,0.000261,10]
[354705262,1740633032101,-500.0,0.000261,10]
[354705263,1740633032111,-500.0,0.000261,10]
[354705264,1740633032121,-500.0,0.000261,10]
[354705265,1740633032130,-800.0,0.000261,10]
[354705266,1740633032139,-152.88,0.00026849,2]